{"text_format":"3","workbook":"xlsx","n_sheets":1,"sheets":["PRICE SCHEDULE"],"not_rendered":{"defined_names":2},"read":"whole","date_system":"1900"}

{"sheet":"PRICE SCHEDULE","index":0,"n_rows":37,"n_cols":6,"rows_kept":37,"merged":[[0,0,0,5],[1,0,1,5],[2,0,2,5],[3,0,3,1],[3,2,3,4],[4,0,4,1],[4,2,4,4],[5,0,5,5],[6,0,6,5],[7,0,8,5],[32,0,32,5],[33,0,33,5],[34,0,34,5],[35,0,35,5],[36,0,36,5],[37,0,37,5],[38,0,38,5]]}
["Arlington County Government"]
["ATTACHMENT A: PRICE SCHEDULE"]
[]
["NAME OF OFFEROR OR CONTRACTOR",null,"SOLICITATION NAME",null,null,"PAGE"]
[null,null,"Wire and Cable",null,null,1]
["SCOPE OF WORK"]
[]
["The Contractor shall provide all materials, hardware, and manufacturing certifications for the traffic signal equipment detailed in the scope of work and specifications."]
[]
["ITEM NO.","SUPPLIES/SERVICES","EST QTY","UNIT","UNIT PRICE","AMOUNT"]
[1,"Electrical Conductors"]
[1.1,"14 AWG 7 Conductor IMSA Cable",{"v":20000,"d":"20,000"},"LF",null,{"$f":"IF(E12=\"\",\"\",(C12*(ROUND(E12,2))))","v":""}]
[1.2,"14 AWG 5 Conductor IMSA Cable",{"v":5000,"d":"5,000"},"LF",null,""]
[1.3,"14 AWG 3 Conductor IMSA Cable",{"v":21000,"d":"21,000"},"LF","",""]
[1.4,"18 AWG 12 Conductor Cable",{"v":2000,"d":"2,000"},"LF",null,""]
[1.5,"Opticom Detector Cable",{"v":10000,"d":"10,000"},"LF",null,""]
[1.6,"Composite Coaxial Video Detection Cable",{"v":10000,"d":"10,000"},"LF",null,""]
[1.7,"3 Conductor Video Cable",{"v":10000,"d":"10,000"},"LF",null,""]
[1.8,"Loop Lead In Cable",{"v":15000,"d":"15,000"},"LF",null,""]
[1.9,"Cat 6 Cable",{"v":5000,"d":"5,000"},"LF",null,""]
["1.10","10 AWG 3 Boat Cable",{"v":4000,"d":"4,000"},"LF",null,""]
[1.11,"6 AWG Stranded RHW-2 Wire (options: Black, White, Red, Green)",{"v":20000,"d":"20,000"},"LF",null,{"$f":"IF(E22=\"\",\"\",(C22*(ROUND(E22,2))))","v":""}]
[1.12,"8 AWG Stranded RHW-2 Wire (options: Black, White, Red, Green)",{"v":5000,"d":"5,000"},"LF",null,""]
[1.13,"10 AWG Stranded RHW -2 Wire (options: Black, White, Red, Green)",{"v":20000,"d":"20,000"},"LF",null,""]
[1.14,"12 AWG Stranded THWN Wire (Black, White, Red, Green)",{"v":2000,"d":"2,000"},"LF",null,""]
[1.15,"14 AWG Stranded THWN Wire (Black, White, Red, Green)",{"v":2000,"d":"2,000"},"LF",null,""]
[1.16,"16 AWG Stranded THWN Wire (Black, White, Red, Green)",{"v":2000,"d":"2,000"},"LF",null,""]
[1.17,"18 AWG Stranded THWN Wire (Black, White, Red, Green)",{"v":2000,"d":"2,000"},"LF",null,""]
[1.18,"6 AWG Solid Bare Copper",500,"LF",null,""]
[1.19,"6 AWG Stranded Bare Copper",{"v":1500,"d":"1,500"},"LF",null,""]
[null,"GRAND TOTAL",{"$nulls":3},{"$f":"SUM(F12:F30)","v":{"v":0,"d":"$0.00"}}]
[]
["NOTES:"]
[]
["Line item unit prices proposed above are estimates only and will servve as the determination for award.   Bidders must complete all items in the Price Schedule to be considered responsive. Missing line items or partial bids will result in the bid being deemed non-responsive."]
["THE UNIT QUANTITIES ABOVE ARE ESTIMATED VALUES: \nThis is a Fixed Unit-Price, Indefinite Quantity contract and the quantities above are estimates only. The quantities may exceed or be less than the estimated amounts. "]
["COMMENCEMENT, PROSECUTION AND COMPLETION OF WORK:  The Contractor shall be required to (a) commence work under this contract within 10 calendar days after the date the Contractor receives Notice to Proceed; (b) prosecute the work diligently; and (c) complete all work ready for use not later than the number of days specified in the contract."]